Cogmind - Beta 15 @@@ ROGUE MODE // 2025.06.14 @ 15:24:34 Player: shockman27 Result: Destroyed by H-88 Terminator with KE Penetrator Performance ------------- Evolutions (9) 4500 Regions Visited (23) 4600 Robots Destroyed (236) 1180 Value Destroyed (11391) 11391 Prototype IDs (61) 1220 Alien Tech Used (4) 800 Bonus (8211) 8211 TOTAL SCORE: 31902 Bonus ------- High Alert Combat Kills 736 Follower Combat Kills 1865 Network Hubs Disabled 200 Registered with UFD 300 Met Optimus in HQ 500 Met Imprinter 300 Met Zhirov 300 Met Warlord at Base 500 MAIN.C Attacked Warlord 500 Warlord Defense Kills 1478 Built Enhanced Grunts 300 A7 Reached Mainframe 300 Met R17 at Cetus 500 Read Decrypted Archives 300 Met R17 at Research 2000 Met Sigix 2000 Friendly Fire -3868 Cogmind --------- Core Integrity 0/1600 Matter 154/300 Energy 99/100 System Corruption 16% Temperature Cool (0) Movement Core (50) Location -1/Access Parts ------- > --- POWER (2) -------- (None) > --- PROPULSION (8) --- (None) > --- UTILITY (12) ----- Advanced Target Analyzer > --- WEAPON (3) ------- (None) > --- INVENTORY (5) ---- Core Cannon Advanced Micro-nuke Launcher Sigix Containment Pod Peak State ------------ > --- POWER ------------ Micro Antimatter Reactor Quantum Reactor > --- PROPULSION ------- Improved Antigrav System Antigrav Array Combat Linear Gravjet Combat Linear Gravjet Combat Linear Gravjet > --- UTILITY ---------- Advanced Heat Sink Advanced Heat Sink Small Storage Unit Advanced Gravity Neutralizer Enhanced Optical Array Advanced Sensor Array Advanced Signal Interpreter Advanced Weapon Cycler AEGIS Remote Shield System Mapper > --- WEAPON ----------- Core Cannon Nanosword > --- INVENTORY -------- Micro Antimatter Reactor Compact Wheel High-capacity Storage Unit High-powered Transdimensional Reconstructor Gamma Rifle Enhanced Quantum Rifle Enhanced Quantum Rifle Advanced Micro-nuke Launcher [Rating: 170] Favorites ----------- Power Micro Fission Core Engine Improved Ion Engine Power Core Micro Fission Core Reactor Particle Reactor Propulsion Centrium Heavy Treads Treads Centrium Heavy Treads Leg Carbon-fiber Leg Wheel Compact Wheel Hover Unit Combat Linear Gravjet Flight Unit Xenon Bombardment Thruster Utility High-capacity Storage Unit Device Seismic Detector Storage High-capacity Storage Unit Processor Enhanced Optical Array Hackware Advanced Hacking Suite Protection Medium Regenerative Plating Artifact Phase Armor Weapon Heavy Phase Cannon Energy Gun Quantum Rifle Energy Cannon Heavy Phase Cannon Ballistic Gun Assault Rifle Ballistic Cannon Battle Cannon Launcher Mini Grenade Launcher Special Weapon Welding Torch Slashing Weapon Makeshift Axe Build | -11 -10 -10 -9 -9 -6 -6 -6 -5 -5 -5 -5 -5 -5 -4 -4 -4 -4 -3 -3 -3 -2 -2 -1 ------- Run | Yrd Mat Sub Rec Scr Fac Low Zio Pro Fac Ext Cet Arc Hub Fac Upp Upp War Pro Res Tes Res Qua Acc Slots Evolved 18 | . . . . . 8 . . . 2 . . . . 2 . . . . 2 . 2 . 2 Power 1 | . . . . . 1 . . . . . . . . . . . . . . . . . . Propulsion 6 | . . . . . 2 . . . 2 . . . . . . . . . . . 2 . . Utility 10 | . . . . . 5 . . . . . . . . 2 . . . . 1 . . . 2 Weapon 1 | . . . . . . . . . . . . . . . . . . . 1 . . . . Parts Attached 253 | 7 7 13 4 9 25 3 5 2 3 26 18 . 7 17 3 2 7 7 14 20 21 27 6 Power 41 | 1 3 4 1 1 4 . . 1 . 5 3 . 1 4 . . 1 1 3 2 3 2 1 Engine 12 | 1 2 4 1 1 1 . . . . 2 . . . . . . . . . . . . . Core 13 | . 1 . . . 3 . . 1 . 3 . . . 3 . . 1 1 . . . . . Reactor 16 | . . . . . . . . . . . 3 . 1 1 . . . . 3 2 3 2 1 Propulsion 63 | 2 . 2 1 4 5 1 1 . 1 16 3 . . 1 . . 1 . 3 1 6 12 3 Treads 24 | 2 . 1 1 1 2 . . . . 6 3 . . 1 . . 1 . 2 1 . 3 . Leg 13 | . . . . . 2 1 1 . 1 7 . . . . . . . . . . . . 1 Wheel 8 | . . 1 . 3 1 . . . . 3 . . . . . . . . . . . . . Hover 10 | . . . . . . . . . . . . . . . . . . . 1 . 6 2 1 Flight 8 | . . . . . . . . . . . . . . . . . . . . . . 7 1 Utility 91 | 2 1 2 1 4 10 1 2 . 2 5 5 . 3 12 1 1 2 3 5 12 6 9 2 Device 52 | 1 . 2 . 1 4 . 1 . . 2 1 . 3 9 . 1 1 3 4 8 3 6 2 Storage 10 | 1 1 . . 3 . . . . 1 . 1 . . . 1 . . . . . 1 1 . Processor 11 | . . . . . 3 . . . . . . . . 2 . . 1 . 1 1 2 1 . Hackware 6 | . . . . . 1 . 1 . 1 . 1 . . 1 . . . . . 1 . . . Protection 11 | . . . 1 . 2 1 . . . 3 2 . . . . . . . . 2 . . . Artifact 1 | . . . . . . . . . . . . . . . . . . . . . . 1 . Weapon 58 | 2 3 5 1 . 6 1 2 1 . . 7 . 3 . 2 1 3 3 3 5 6 4 . Energy Gun 20 | . . 1 . . 1 1 . . . . 2 . 1 . 2 1 1 2 1 2 4 1 . Energy Cannon 12 | . 1 . 1 . . . . . . . 2 . 2 . . . 1 . . 2 2 1 . Ballistic Gun 11 | 2 . 2 . . 3 . . 1 . . 2 . . . . . . 1 . . . . . Ballistic Cannon 4 | . . 1 . . 1 . . . . . . . . . . . . . 1 . . 1 . Launcher 4 | . 1 . . . 1 . . . . . . . . . . . 1 . . . . 1 . Special Weapon 3 | . 1 . . . . . 1 . . . 1 . . . . . . . . . . . . Impact Weapon . | . . . . . . . . . . . . . . . . . . . . . . . . Slashing Weapon 4 | . . 1 . . . . 1 . . . . . . . . . . . 1 1 . . . Piercing Weapon . | . . . . . . . . . . . . . . . . . . . . . . . . Special Melee Weapon . | . . . . . . . . . . . . . . . . . . . . . . . . Unidentified Prototypes 37 | . . . . . . . . . 1 . 8 . . 2 . . 4 . 1 10 2 8 1 Corrupted Parts 1 | . . . . . . . . . . . 1 . . . . . . . . . . . . System Corruption 3 | . . . . . . . . . . . 3 . . . . . . . . . . . . Parts Lost 90 | . 1 4 . . 8 2 . 1 4 8 1 1 3 5 . . . 2 1 5 6 21 17 Power 19 | . 1 2 . . 2 . . 1 2 . . . 2 2 . . . . . 1 2 2 2 Propulsion 29 | . . 1 . . 3 . . . 1 5 . . . . . . . . . 1 2 10 6 Utility 30 | . . 1 . . 1 2 . . 1 3 . 1 1 1 . . . 1 1 1 1 7 8 Weapon 12 | . . . . . 2 . . . . . 1 . . 2 . . . 1 . 2 1 2 1 Highest Loss Streak 13 | . 1 2 . . 2 2 . 1 4 2 1 1 1 1 . . . 2 1 2 5 12 13 To Critical Strikes 1 | . . . . . . . . . . 1 . . . . . . . . . . . . . Average Backups 16 | 3 8 9 10 18 18 15 17 16 12 18 18 17 16 17 17 17 16 18 17 15 16 13 3 Power . | 1 1 . . . . 1 2 . . 1 2 2 . 1 . . . . 1 . 1 1 . Propulsion 3 | 1 1 . 1 3 1 1 2 3 1 5 2 2 2 3 6 5 4 4 5 4 3 . . Utility 3 | . . 1 1 5 5 3 3 4 3 3 3 4 3 4 3 4 4 3 2 1 2 2 1 Weapon 8 | . 4 6 6 8 9 8 8 8 6 7 9 9 10 8 7 7 8 9 8 8 8 9 2 Tool/Special . | . . . . . . . . . . . . . . . . . . . . . . . . Unused Backups 85 | . 3 5 1 7 10 . . 1 1 6 10 . 2 5 1 1 6 2 5 5 2 12 . Power 12 | . 2 . . . 1 . . 1 . 3 . . 1 1 . . . . . 1 . 2 . Propulsion 28 | . 1 1 . 2 1 . . . . 1 3 . . 2 1 1 6 1 3 3 . 2 . Utility 13 | . . . . . 5 . . . . 1 2 . 1 1 . . . 1 2 . . . . Weapon 32 | . . 4 1 5 3 . . . 1 1 5 . . 1 . . . . . 1 2 8 . Tool/Special . | . . . . . . . . . . . . . . . . . . . . . . . . Average Slot Usage (%) 88 | . 99 99 100 94 82 96 91 100 91 92 79 78 81 83 84 84 83 83 84 84 79 71 50 Engine 4 | . 7 13 14 14 8 . . . . 5 . . . . . . . . . . . . . Core 3 | . 6 . . . 3 13 13 13 10 3 2 . . 2 10 10 10 10 3 . . . . Reactor 2 | . . . . . . . . . . . 7 11 11 7 . . . . 5 9 8 7 4 Treads 14 | . 27 23 28 16 11 5 1 . . 8 14 17 17 15 15 15 14 15 14 13 8 . . Leg 3 | . . . . . . 19 24 26 25 21 3 . . . . . . . . . . . . Wheel 2 | . . 4 . 11 6 . . . . . . . . . . . . . . . . . . Device 12 | . 14 13 2 1 11 10 10 13 5 4 10 7 9 19 15 15 15 16 22 22 16 15 10 Storage 7 | . 14 14 14 13 6 6 6 6 5 5 5 5 5 5 5 5 5 5 4 4 4 4 2 Processor 8 | . . . . . 12 13 13 13 11 11 11 11 11 10 10 10 12 15 14 9 9 11 10 Hackware 3 | . . . . . 5 3 4 6 10 4 1 5 5 5 10 10 7 3 . . 4 4 4 Protection 5 | . . . 11 6 . 8 8 6 4 9 5 5 5 5 5 5 5 5 4 7 6 . . Energy Gun 1 | . . . . . 1 . . . . . 2 5 . . 2 4 5 4 2 3 2 . . Energy Cannon 6 | . 13 3 12 14 . 1 . . . . 2 5 4 8 7 5 5 5 6 2 . 3 . Ballistic Gun 2 | . 13 16 . . 5 1 . 6 1 2 4 . . . . . . . . 1 . . . Ballistic Cannon 3 | . . 5 12 14 . 2 . . 3 5 . . 1 . . . . . . 1 2 . 2 Slashing Weapon 1 | . . . 2 . 3 3 6 6 4 2 . . 3 1 . . . . 2 3 4 4 2 Peak Build Rating 170 | 7 10 17 17 21 74 66 66 69 69 79 134 130 131 143 141 142 145 144 155 169 169 170 125 Average Rating 86 | 5 8 12 15 16 61 57 59 64 64 66 121 126 126 139 140 140 141 142 150 157 158 129 82 On Entrance 88 | . 7 8 17 15 21 62 56 66 65 53 79 130 125 124 140 140 141 143 143 143 169 158 111 Naked Turns . | . . . . . . . . . . . . . . . . . . . . . . . . Heaviest Build 230 | 12 22 24 31 218 230 78 78 69 67 86 104 96 102 120 82 82 81 80 115 128 122 123 36 Greatest Support 240 | 40 40 40 40 43 35 50 76 76 90 140 240 240 240 240 240 240 240 240 240 225 215 103 38 Greatest Overweight (x) 13 | . . 1 . 13 11 1 1 . . 1 1 . . . . . . . . 1 . 10 3 Average Overweight (x) . | . . . . 2 3 1 . . . . . . . . . . . . . . . . . Largest Inventory Capacity 35 | 8 10 10 10 35 35 20 20 20 20 20 20 20 20 20 20 20 20 20 20 20 20 20 8 Average Capacity 18 | 7 9 10 10 21 21 20 20 20 20 20 20 20 20 20 20 20 20 20 20 20 20 15 6 Most Carried 35 | 5 10 10 10 35 35 19 20 20 20 20 20 20 20 20 20 20 20 20 20 20 20 20 8 Average Carried 17 | 3 8 9 9 19 19 17 19 18 13 19 19 20 19 19 20 19 19 19 19 17 17 14 6 Final Capacity 35 | 8 10 10 10 35 20 20 20 20 20 20 20 20 20 20 20 20 20 20 20 20 20 8 5 Final Carried 35 | 5 9 10 10 35 19 18 20 19 13 20 20 20 19 20 20 20 19 20 19 20 16 8 5 Class Distribution -------------------- 23% | Scavenger-Skirmisher 16% | Commander-Mutant 15% | Scavenger-Assassin 11% | Scavenger-Mutant 10% | Mutant 6% | Derelict-Mutant 6% | Hauler-Mutant Dominant Class ---------------- Mutant | -10/Materials Scavenger-Mutant | -10/Subcaves Commander-Mutant | -9/Recycling Commander-Mutant | -9/Scraptown Scrapper | -6/Factory Scavenger-Assassin | -6/Lower Caves Derelict-Mutant | -6/Zion Derelict-Mutant | -5/Proximity Caves Derelict-Mutant | -5/Factory Commander-Mutant | -5/Extension Scavenger-Mutant | -5/Cetus Scavenger-Mutant | -5/Archives Scavenger-Mutant | -5/Hub_04(d) Scavenger-Skirmisher | -4/Factory Scavenger-Skirmisher | -4/Upper Caves Scavenger-Skirmisher | -4/Upper Caves Scavenger-Skirmisher | -4/Warlord Scavenger-Skirmisher | -3/Proximity Caves Scavenger-Assassin | -3/Research Scavenger-Assassin | -3/Testing Scavenger-Scout | -2/Research Scavenger-Assassin | -2/Quarantine Scavenger-Sprinter | -1/Access Resources | -11 -10 -10 -9 -9 -6 -6 -6 -5 -5 -5 -5 -5 -5 -4 -4 -4 -4 -3 -3 -3 -2 -2 -1 ----------- Run | Yrd Mat Sub Rec Scr Fac Low Zio Pro Fac Ext Cet Arc Hub Fac Upp Upp War Pro Res Tes Res Qua Acc Matter Collected 7252 | 334 295 265 245 100 758 180 139 109 . 928 480 21 227 477 148 134 164 87 334 841 283 614 89 Remotely . | . . . . . . . . . . . . . . . . . . . . . . . . Salvage Created 10900 | 129 673 344 532 . 1151 66 . . . 714 408 . 356 1957 253 121 548 159 370 1227 867 705 320 Parts 563 | 11 44 28 24 . 77 . . . . 21 21 . 12 95 19 7 12 13 13 65 50 33 18 Haulers Intercepted 4 | . 1 . . . 1 . . . . 2 . . . . . . . . . . . . . Recyclers Shooed 12 | 1 2 . 3 . 4 . . . . . . . . 1 . . . . . . . . 1 Parts Field Recycled . | . . . . . . . . . . . . . . . . . . . . . . . . Retrieved Matter . | . . . . . . . . . . . . . . . . . . . . . . . . Parts Self-Destructed 78 | . . 8 . . . 6 2 2 . . . . . . 16 6 . 38 . . . . . Prevented 8 | . . . . . . 4 . . . . . . . . . . . 4 . . . . . Kills | -11 -10 -10 -9 -9 -6 -6 -6 -5 -5 -5 -5 -5 -5 -4 -4 -4 -4 -3 -3 -3 -2 -2 -1 ------- Run | Yrd Mat Sub Rec Scr Fac Low Zio Pro Fac Ext Cet Arc Hub Fac Upp Upp War Pro Res Tes Res Qua Acc Combat Hostiles Destroyed 183 | . 15 8 3 . 18 3 . . . 8 4 . 5 31 10 6 9 3 7 25 16 8 4 Melee 21 | . . . . . 2 . . . . . . . 3 . . . . . . 4 5 6 1 Guns 46 | . 8 5 . . 8 . . . . . 2 . . . 3 . 4 2 1 9 2 2 . Cannons 61 | . 7 1 3 . 3 1 . . . 5 1 . 1 23 2 1 3 1 4 4 1 . . AOE 46 | . . 2 . . 5 2 . . . 3 . . . 5 5 5 . . 2 6 8 . 3 Classes Destroyed 21 | 3 4 1 3 . 2 . . . . 1 . . 1 . 1 . 3 1 . . . 1 . Worker 8 | 1 2 . . . 1 . . . . . . . . . . . . . . . 3 . 1 Builder 11 | . . . 1 . 5 . . . . . . . . 1 . . . . . 2 2 . . Tunneler 2 | 2 . . . . . . . . . . . . . . . . . . . . . . . Hauler 4 | . 1 . . . 1 . . . . 2 . . . . . . . . . . . . . Recycler 15 | 1 . . 5 . 1 . . . . 1 . . . 3 . . . . . 1 1 1 1 Mechanic 1 | . . . . . . . . . . . . . . . . . . . . 1 . . . Operator 2 | . 1 . . . . . . . . . . . . 1 . . . . . . . . . Drone 1 | . . . . . . . . . . . . . . . . . . 1 . . . . . Watcher 2 | . . . . . . . . . . . . . 1 . . . . . 1 . . . . Swarmer 50 | . 3 4 . . 6 1 . . . 1 . . . 5 9 5 . . 4 4 4 4 . Grunt 48 | . 12 . . . 4 1 . . . 5 1 . 3 6 . . 2 1 . 3 7 2 1 Brawler 1 | . . . . . . . . . . 1 . . . . . . . . . . . . . Researcher 2 | . . . . . . . . . . . . . . . . . . . . . . 2 . Sentry 12 | . . . 2 . 1 1 . . . 1 . . 2 2 . 1 . . 2 . . . . Demolisher 4 | . . . 1 . . . . . . . . . . . . . 2 . 1 . . . . Hunter 11 | . . . . . 3 . . . . . . . . 2 . . 2 . . 4 . . . Programmer 46 | . . . . . 4 . . . . . . . . 16 1 . . 1 . 14 5 2 3 Cetus Guard 3 | . . . . . . . . . . . 3 . . . . . . . . . . . . Executioner 2 | . . . . . . . . . . . . . . . . . 2 . . . . . . Subdweller 4 | . . 4 . . . . . . . . . . . . . . . . . . . . . Samaritan 1 | . . . . . . . . . . . . . . . 1 . . . . . . . . Tinkerer 2 | . . . . . . . . . . . . . . . . . 2 . . . . . . Surgeon 2 | . . . . . . . . . . . . . . . . . 2 . . . . . . Thug 1 | . . . . . . . . . . . . . . . . . 1 . . . . . . Savage 2 | . . . . . . . . . . 1 1 . . . . . . . . . . . . Bouncer 1 | . . . . . . . . . . . . . . . . . 1 . . . . . . Best Kill Streak 8 | 2 4 4 4 . 5 3 . . . 2 2 . 3 6 6 5 5 1 4 8 8 6 5 Combat Bots Only 7 | . 4 4 1 . 4 3 . . . 2 2 . 3 6 5 5 5 1 4 7 6 6 3 Max Kills in Single Turn 6 | 2 1 2 1 . 3 1 . . . 1 1 . 1 3 4 2 6 1 1 3 6 1 3 Gunslinging . | . . . . . . . . . . . . . . . . . . . . . . . . Exploded 5 | . . 2 . . 3 1 . . . 1 . . . 3 3 2 . . 1 2 5 . 1 Melee 1 | . . . . . 1 . . . . . . . 1 . . . . . . 1 1 1 1 Uniques/NPCs Destroyed 1 | . . . . . . . . . . . 1 . . . . . . . . . . . . A7 (-5/Cetus) Combat | -11 -10 -10 -9 -9 -6 -6 -6 -5 -5 -5 -5 -5 -5 -4 -4 -4 -4 -3 -3 -3 -2 -2 -1 -------- Run | Yrd Mat Sub Rec Scr Fac Low Zio Pro Fac Ext Cet Arc Hub Fac Upp Upp War Pro Res Tes Res Qua Acc Hostile Shots Fired 1642 | . 55 42 . . 212 24 . 28 48 92 28 . 80 156 25 8 23 18 62 290 84 165 202 Missed 519 | . 10 16 . . 73 9 . 8 23 28 11 . 18 40 6 6 7 7 18 95 26 35 83 Hits 1123 | . 45 26 . . 139 15 . 20 25 64 17 . 62 116 19 2 16 11 44 195 58 130 119 Melee 2 | . . . . . . . . 1 . 1 . . . . . . . . . . . . . Projectile 1121 | . 45 26 . . 139 15 . 19 25 63 17 . 62 116 19 2 16 11 44 195 58 130 119 AOE 18 | . . . . . . . . . . . . . . . . . 11 . 6 . . . 1 Critical Strikes 57 | . . . . . 3 . . . 2 4 1 . 6 10 . . 1 3 2 11 4 6 4 Actively Blocked 16 | . . . . . . . . . . . . . . 10 . . 1 3 2 . . . . Part Disruptions 7 | . . . . . . . . . . . . . . 1 . . . . . 5 1 . . Damage Taken 23370 | . 531 553 . . 1969 165 . 431 507 1297 438 596 1312 2242 290 42 668 292 1360 3707 1452 2870 2648 Core 3698 | . 51 41 . . 213 6 . 66 83 60 . 41 92 114 12 . 42 56 101 240 148 718 1614 Absorbed by Shields 829 | . . . . . 83 . . . . 296 66 . . 115 . . 23 . . 246 . . . Redirected to Shielding 266 | . . . . . . . . . . 106 . . . . . . . . . 160 . . . Ignored by Resistances 656 | . . . . . . . . . . . . . . . . . . . . 498 158 . . Regen/Repaired (Parts) 3949 | . 272 . . . 119 . . . . . 107 99 126 667 108 25 886 148 80 734 559 19 . Core Remaining (%) 69 | 100 . . . 63 . . . 66 . . . . 72 . . . . 80 . 73 . 34 . Volleys Fired 679 | 16 56 49 20 . 64 25 . 6 . 57 41 . 8 112 12 18 13 18 25 86 24 14 15 Largest 3 | 2 2 2 2 . 2 1 . 2 . 2 2 . 2 2 2 2 2 2 3 3 2 1 1 Hottest 334 | 40 80 80 113 . 113 100 . 140 . 77 240 . 188 188 188 178 130 184 274 334 165 90 58 Shots Fired 1174 | 32 106 87 39 . 119 25 . 6 . 101 73 . 18 186 23 23 25 27 52 165 37 15 15 Gun 503 | 32 50 55 . . 102 5 . 6 . 16 46 . 1 . 5 6 13 9 16 114 21 6 . Cannon 622 | . 50 31 39 . 15 16 . . . 74 25 . 17 183 16 14 12 18 33 48 14 9 8 Launcher 42 | . 1 1 . . 2 4 . . . 11 . . . 3 2 3 . . 3 3 2 . 7 Special 7 | . 5 . . . . . . . . . 2 . . . . . . . . . . . . Kinetic 415 | 32 50 58 19 . 93 1 . 6 . 90 21 . 4 . . . . . 3 30 . . 8 Thermal 637 | . 55 28 20 . 4 20 . . . . 50 . 13 183 21 20 12 20 43 102 31 15 . Explosive 37 | . 1 1 . . 2 4 . . . 11 . . . 3 2 3 . . 3 . . . 7 Electromagnetic 35 | . . . . . 20 . . . . . . . 1 . . . . . 3 7 4 . . Entropic 48 | . . . . . . . . . . . . . . . . . 13 7 . 26 2 . . Robot Hit Streak 18 | 7 9 15 9 . 10 1 . 3 . 7 10 . 11 18 4 6 8 5 7 7 4 6 3 Robot Miss Streak 6 | 2 6 2 3 . 4 . . 2 . 2 2 . 1 5 1 1 3 2 3 4 2 1 1 Penetration Max 2 | . . . . . 2 . . . . . . . . . . . . . . . . . . Secondary Targets 3 | . . 1 . . 1 . . . . . 1 . . . . . . . . . . . . Max Gunslinging Chain 1 | . . 1 . . 1 . . . . . 1 . . . . . . . . . . . . Shots Hit Robots 714 | 20 57 44 16 . 75 1 . 3 6 73 55 . 33 91 8 4 15 14 27 98 30 37 7 Core Hits 372 | 8 29 20 9 . 39 6 . . . 39 16 . 10 45 12 8 16 6 15 45 26 13 10 Critical Kills 9 | . . . . . . . . . . . 2 . . 2 1 . 2 . . 2 . . . Critical Parts Destroyed 10 | . 1 . . . 4 . . . . . 2 . . . . . 1 . . 2 . . . Critical Strikes 45 | . 1 . 1 . 7 . . . . 7 5 . 5 2 1 . 3 . 1 7 2 2 1 Burn 1 | . . . . . . . . . . . 1 . . . . . . . . . . . . Meltdown 6 | . . . . . . . . . . . 1 . . 2 . . 2 . . 1 . . . Destroy 11 | . 1 . . . 4 . . . . . 3 . . . 1 . . . . 2 . . . Blast 9 | . . . 1 . 2 . . . . 3 . . . . . . . . 1 2 . . . Sever 16 | . . . . . 1 . . . . 4 . . 5 . . . . . . 1 2 2 1 Detonate 2 | . . . . . . . . . . . . . . . . . 1 . . 1 . . . Melee Attacks 343 | . . 2 . . 50 4 2 . 14 24 . . 37 16 . . . . 18 47 55 51 23 Impact . | . . . . . . . . . . . . . . . . . . . . . . . . Slashing 343 | . . 2 . . 50 4 2 . 14 24 . . 37 16 . . . . 18 47 55 51 23 Piercing . | . . . . . . . . . . . . . . . . . . . . . . . . Sneak Attacks 24 | . . . . . 8 . . . 1 6 . . . . . . . . . 2 3 3 1 Combat Hostiles 1 | . . . . . . . . . . . . . . . . . . . . . 1 . . Follow-up Attacks 9 | . . . . . . . . . 1 2 . . 6 . . . . . . . . . . Damage Inflicted 33644 | 231 973 774 407 . 2830 313 . 85 312 2973 1626 . 1200 5127 536 481 1706 679 1213 5198 3847 2210 923 Guns 7237 | 231 358 538 . . 1387 . . 85 . 181 862 . . . 108 81 513 318 147 1824 473 131 . Cannons 10790 | . 615 176 407 . 118 30 . . . 1465 764 . 427 3995 71 35 241 361 726 1066 146 147 . Explosions 9020 | . . 60 . . 589 283 . . . 637 . . . 1132 357 365 952 . 340 1426 2244 . 635 Melee 6592 | . . . . . 736 . . . 312 690 . . 773 . . . . . . 882 984 1932 283 Ramming 5 | . . . . . . . . . . . . . . . . . . . . . . . 5 Kinetic 5157 | 231 358 381 130 . 1265 30 . 85 . 1646 416 . 94 . . . . . 92 429 . . . Thermal 12508 | . 615 333 277 . 293 . . . . . 1210 . 303 3995 179 116 1193 398 725 2067 526 278 . Explosive 4256 | . . 60 . . 322 283 . . . 637 . . . 1132 357 365 . . 340 125 . . 635 Electromagnetic 491 | . . . . . 214 . . . . . . . 30 . . . . . 56 98 93 . . Impact . | . . . . . . . . . . . . . . . . . . . . . . . . Slashing 6592 | . . . . . 736 . . . 312 690 . . 773 . . . . . . 882 984 1932 283 Piercing . | . . . . . . . . . . . . . . . . . . . . . . . . Entropic 4635 | . . . . . . . . . . . . . . . . . 513 281 . 1597 2244 . . Highest Corruption 18 | . . . . . 9 9 9 . 2 4 7 7 10 8 6 6 6 1 1 18 8 13 16 Average Corruption 5 | . . . . . 5 9 9 . 1 2 6 7 7 4 6 6 6 1 1 9 3 10 9 Corruption Purged 13 | . . . . . . . . . . . . . . 7 . . . . . 6 . . . Corruption Blocked . | . . . . . . . . . . . . . . . . . . . . . . . . Effects 336 | . . . . . 19 24 4 . . 21 29 7 26 52 23 26 1 7 11 63 5 13 5 Message Errors 79 | . . . . . 4 9 2 . . 5 4 3 7 7 7 6 . 2 3 19 . 1 . Matter Fused 71 | . . . . . 1 3 1 . . 6 6 1 3 16 4 9 1 1 . 12 1 5 1 Heat Flow Errors 41 | . . . . . 2 5 1 . . 2 5 1 2 6 1 3 . . . 8 1 4 . Energy Discharges 45 | . . . . . 5 2 . . . 1 4 1 3 11 5 1 . 3 4 3 1 . 1 Parts Rejected 4 | . . . . . . . . . . . . 1 1 . . . . . . 2 . . . Parts Fused 4 | . . . . . . . . . . 1 . . 1 1 . . . . . . . 1 . Data Loss (minor) 39 | . . . . . 4 3 . . . 3 4 . 2 4 3 3 . 1 1 8 1 1 1 Data Loss (major) 16 | . . . . . . 1 . . . 2 2 . 3 3 1 . . . 2 2 . . . Misfires 15 | . . . . . . 1 . . . . 1 . 4 2 1 2 . . 1 1 1 1 . Alerts 8 | . . . . . 3 . . . . 1 . . . 1 1 . . . . 2 . . . Misdirections 4 | . . . . . . . . . . . . . . . . . . . . 2 . . 2 Weapon Failures 10 | . . . . . . . . . . . 3 . . 1 . 2 . . . 4 . . . Overload Shots 13 | . . . . . . . . . . . 1 . . . . . . . . 12 . . . Effects 2 | . . . . . . . . . . . 1 . . . . . . . . 1 . . . Energy Bleed 1 | . . . . . . . . . . . 1 . . . . . . . . . . . . Short Circuit 1 | . . . . . . . . . . . . . . . . . . . . 1 . . . Overflow Damage 1562 | . . . 1 . 176 . . . 80 10 18 . 11 242 40 37 117 10 14 189 300 194 123 Projectiles 305 | . . . 1 . 1 . . . . 6 18 . . 209 . . . 10 14 34 . 12 . Explosions 571 | . . . . . 60 . . . . 4 . . . 33 40 37 117 . . 70 149 . 61 Melee 686 | . . . . . 115 . . . 80 . . . 11 . . . . . . 85 151 182 62 Knockbacks 14 | . . . 4 . 1 . . . . 4 . . . . . . . . . 5 . . . Impact . | . . . . . . . . . . . . . . . . . . . . . . . . Kinetic 12 | . . . 3 . 1 . . . . 3 . . . . . . . . . 5 . . . Secondary 2 | . . . 1 . . . . . . 1 . . . . . . . . . . . . . Self-Inflicted Damage 1090 | . . . . . 123 . . . . 79 . . . 138 . . . . . 367 284 . 99 Shots 13 | . . . . . 2 . . . . 1 . . . 2 . . . . . 3 2 . 3 Rammed 2 | . . . . . . . . . . . . . . . . . . . . . . . 2 Targets Rammed 2 | . . . . . . . . . . . . . . . . . . . . . . . 2 Kicked . | . . . . . . . . . . . . . . . . . . . . . . . . Crushed . | . . . . . . . . . . . . . . . . . . . . . . . . Highest Temperature 508 | . 168 . 200 . 349 412 105 173 . 162 508 108 182 354 189 248 . 120 290 473 48 203 . Average Temperature 87 | . 50 . 74 . 95 128 58 102 . 35 187 61 58 77 54 64 . 52 98 141 11 60 . Received Heat Transfer 2541 | . 249 96 . . 421 57 . 135 . 306 66 . 360 156 . 9 9 51 18 86 153 324 45 Effects 20 | . . . . . 3 2 . . . . 9 . . 2 . . . . . 4 . . . Shutdowns 6 | . . . . . 1 1 . . . . 3 . . 1 . . . . . . . . . Interference 12 | . . . . . . 1 . . . . 6 . . 1 . . . . . 4 . . . Matter Decay 1 | . . . . . 1 . . . . . . . . . . . . . . . . . . Damage (minor) 1 | . . . . . 1 . . . . . . . . . . . . . . . . . . Siege Activations . | . . . . . . . . . . . . . . . . . . . . . . . . Martial Activations . | . . . . . . . . . . . . . . . . . . . . . . . . Shielding Activations . | . . . . . . . . . . . . . . . . . . . . . . . . Robots Disrupted . | . . . . . . . . . . . . . . . . . . . . . . . . Combat Hostiles . | . . . . . . . . . . . . . . . . . . . . . . . . Robots Corrupted . | . . . . . . . . . . . . . . . . . . . . . . . . Combat Hostiles . | . . . . . . . . . . . . . . . . . . . . . . . . Parts Fried 4 | . . . . . 3 . . . . . . . . . . . . . . 1 . . . Impact Corruptions 1 | . . . 1 . . . . . . . . . . . . . . . . . . . . Robots Melted 9 | . . . . . . . . . . . 1 . 1 3 . . 2 . . 2 . . . Combat Hostiles 9 | . . . . . . . . . . . 1 . 1 3 . . 2 . . 2 . . . Parts Melted 20 | . . . . . 1 . . . . . . . 1 11 . . 2 . . 5 . . . Heat Transferred 11964 | . 1258 570 370 . 137 . . . . . 1235 . 398 3645 248 148 821 37 333 1950 518 296 . Parts Sabotaged . | . . . . . . . . . . . . . . . . . . . . . . . . Parts Stolen . | . . . . . . . . . . . . . . . . . . . . . . . . Parts Stripped . | . . . . . . . . . . . . . . . . . . . . . . . . Power Chain Reactions 1 | . . . . . 1 . . . . . . . . . . . . . . . . . . Alert | -11 -10 -10 -9 -9 -6 -6 -6 -5 -5 -5 -5 -5 -5 -4 -4 -4 -4 -3 -3 -3 -2 -2 -1 ------- Run | Yrd Mat Sub Rec Scr Fac Low Zio Pro Fac Ext Cet Arc Hub Fac Upp Upp War Pro Res Tes Res Qua Acc Maximum Alert Level 3 | . . . . . 1 . . . . 3 2 1 . 2 . . . . . 3 3 2 2 Low Security (%) 70 | 100 100 . 100 . 86 . . . 100 68 . 71 100 72 . . . . 100 66 . . 38 Level 1 14 | . . . . . 13 . . . . 24 . 28 . 18 . . . . . . 51 95 32 Level 2 14 | . . . . . . . . . . 2 100 . . 9 . . . . . 32 41 4 28 Level 3 . | . . . . . . . . . . 4 . . . . . . . . . 1 7 . . Level 4 . | . . . . . . . . . . . . . . . . . . . . . . . . Level 5 . | . . . . . . . . . . . . . . . . . . . . . . . . High Security . | . . . . . . . . . . . . . . . . . . . . . . . . Max Security . | . . . . . . . . . . . . . . . . . . . . . . . . Peak Influence 809 | 10 192 . 107 . 257 . . . 4 809 589 261 165 596 . . . . 106 738 738 436 548 Initial 448 | . . . 79 . . . . . . . 448 194 42 71 . . . . . . 412 413 176 Average 161 | . 78 . 21 . 87 . . . . 178 500 181 20 153 . . . . 11 239 439 303 277 Influence Increases 9924 | 20 527 200 216 . 918 60 . 91 16 1386 529 97 354 1353 235 130 310 65 293 1191 817 434 682 Destroy 0b10 Robot/C 4500 | . 300 80 60 . 440 60 . 40 . 660 240 40 100 620 200 120 260 40 140 500 320 200 80 Destroy 0b10 Robot/NC 260 | 20 20 . 30 . 45 . . . . 25 10 . 5 25 5 . . 5 5 20 30 5 10 Destroy Leader 692 | . 72 . . . 102 . . . . 54 20 . 22 140 30 10 . 20 42 100 50 20 10 Allied During Kill 688 | . . . 8 . 16 . . 6 . 357 211 40 . . . . 50 . . . . . . Successful Hack 404 | . 37 . 19 . 81 . . . . 18 7 . 13 71 . . . . . 57 21 35 45 Select Force Hacks 170 | . 30 . 90 . . . . . . . . . 50 . . . . . . . . . . Disable Machine 705 | . . . . . 60 . . . . 45 15 15 45 150 . . . . 30 210 15 75 45 Destroy Structure 1665 | . 8 . 9 . 84 . . . 16 212 26 2 14 332 . . . . 76 304 261 24 297 Partial Spotted 90 | . 30 . . . . . . . . . . . . . . . . . . . 15 15 30 Lose Combat Pursuer 750 | . 30 120 . . 90 . . 45 . 15 . . 105 15 . . . . . . 105 60 165 Influence Decreases 9406 | 20 421 141 381 . 678 300 . 91 16 586 844 461 328 1300 435 130 162 213 292 458 816 874 459 Entered New Map 2011 | . . 52 86 . . 89 . . . . 352 291 79 76 74 . . 148 . 1 322 322 119 Time Decay 5612 | 20 411 85 295 . 497 191 . 45 16 416 422 140 219 574 361 130 72 65 282 425 434 342 170 Lost Part 768 | . 10 4 . . 72 20 . 10 . 70 10 10 30 50 . . . . 10 32 60 210 170 Lost Ally 415 | . . . . . 109 . . 36 . 100 60 20 . . . . 90 . . . . . . Purge Threat 600 | . . . . . . . . . . . . . . 600 . . . . . . . . . Squads Dispatched 65 | . 2 . . . 18 . . 1 1 2 1 . 3 13 . . . . 5 9 5 3 2 Investigation 18 | . 1 . . . 6 . . . . 1 1 . 2 1 . . . . 5 . 1 . . Extermination 28 | . . . . . 4 . . . 1 . . . 1 9 . . . . . 6 2 3 2 Reinforcement 14 | . 1 . . . 5 . . . . 1 . . . 3 . . . . . 3 1 . . Assault 2 | . . . . . . . . 1 . . . . . . . . . . . . 1 . . Garrison 3 | . . . . . 3 . . . . . . . . . . . . . . . . . . Intercept . | . . . . . . . . . . . . . . . . . . . . . . . . Searches Triggered . | . . . . . . . . . . . . . . . . . . . . . . . . Construction Impeded 6 | . . . . . 4 . . . . . . . . 1 . . . . . 1 . . . Haulers Reinforced . | . . . . . . . . . . . . . . . . . . . . . . . . Active Scanning Responses . | . . . . . . . . . . . . . . . . . . . . . . . . Cargo Convoy Interrupts . | . . . . . . . . . . . . . . . . . . . . . . . . Stealth | -11 -10 -10 -9 -9 -6 -6 -6 -5 -5 -5 -5 -5 -5 -4 -4 -4 -4 -3 -3 -3 -2 -2 -1 --------- Run | Yrd Mat Sub Rec Scr Fac Low Zio Pro Fac Ext Cet Arc Hub Fac Upp Upp War Pro Res Tes Res Qua Acc Distress Signals 27 | . 4 . . . 3 . . . . 3 2 1 2 1 . . 1 . 5 . 1 . 4 Communications Jammed . | . . . . . . . . . . . . . . . . . . . . . . . . Distress Signals . | . . . . . . . . . . . . . . . . . . . . . . . . Times Spotted 392 | . 28 12 1 . 32 3 . 11 5 32 14 . 26 45 7 5 27 9 16 37 26 27 29 Peak Tracking Total 15 | . 5 4 1 . 5 3 . 7 4 4 5 . 9 4 5 5 12 4 5 5 9 7 15 Tactical Retreats 31 | . 1 3 . . 4 . . 2 . 1 . . 5 1 . . . . . . 5 2 7 Traps | -11 -10 -10 -9 -9 -6 -6 -6 -5 -5 -5 -5 -5 -5 -4 -4 -4 -4 -3 -3 -3 -2 -2 -1 ------- Run | Yrd Mat Sub Rec Scr Fac Low Zio Pro Fac Ext Cet Arc Hub Fac Upp Upp War Pro Res Tes Res Qua Acc Traps Triggered 20 | . . 2 . . 5 . . . . 2 . . . 4 . . . . . 4 1 2 . Indirectly . | . . . . . . . . . . . . . . . . . . . . . . . . Trap Hack Attempts . | . . . . . . . . . . . . . . . . . . . . . . . . Triggered . | . . . . . . . . . . . . . . . . . . . . . . . . Disarmed . | . . . . . . . . . . . . . . . . . . . . . . . . Reprogrammed . | . . . . . . . . . . . . . . . . . . . . . . . . Reused . | . . . . . . . . . . . . . . . . . . . . . . . . Traps Extracted . | . . . . . . . . . . . . . . . . . . . . . . . . Installed . | . . . . . . . . . . . . . . . . . . . . . . . . Triggered . | . . . . . . . . . . . . . . . . . . . . . . . . Machines | -11 -10 -10 -9 -9 -6 -6 -6 -5 -5 -5 -5 -5 -5 -4 -4 -4 -4 -3 -3 -3 -2 -2 -1 ---------- Run | Yrd Mat Sub Rec Scr Fac Low Zio Pro Fac Ext Cet Arc Hub Fac Upp Upp War Pro Res Tes Res Qua Acc Machines Disabled 49 | . . . . . 4 . . . . 3 2 1 3 10 . . . . 2 15 1 5 3 Max in Single Turn 5 | . . . . . 1 . . . . 2 1 . 1 5 . . . . 1 2 1 1 1 Garrison Access 4 | . . . . . . . . . . . . . . . . . . . 2 . 1 . 1 Network Hub 1 | . . . . . . . . . . . . . 1 . . . . . . . . . . Energy Cycler 4 | . . . . . . . . . . 3 . . . . . . . . . . . . 1 Machines Repaired . | . . . . . . . . . . . . . . . . . . . . . . . . Machines Dismantled . | . . . . . . . . . . . . . . . . . . . . . . . . Machines Sabotaged 1 | . . . . . . . . . . . . . 1 . . . . . . . . . . Overloaded Fab Kills . | . . . . . . . . . . . . . . . . . . . . . . . . Hacking | -11 -10 -10 -9 -9 -6 -6 -6 -5 -5 -5 -5 -5 -5 -4 -4 -4 -4 -3 -3 -3 -2 -2 -1 --------- Run | Yrd Mat Sub Rec Scr Fac Low Zio Pro Fac Ext Cet Arc Hub Fac Upp Upp War Pro Res Tes Res Qua Acc Machines Accessed 97 | . 9 . 9 5 17 . . . 1 2 3 1 4 10 1 . 4 . 9 7 4 7 4 Terminals 53 | . 7 . 6 . 8 . . . . 2 3 . 3 6 1 . . . 2 4 2 7 2 Fabricators 4 | . . . . . 1 . . . . . . . . 2 . . . . . 1 . . . Repair Stations 8 | . 1 . . . 2 . . . 1 . . . . 1 . . . . . 2 1 . . Recycling Units 16 | . 1 . 3 . 5 . . . . . . . . 1 . . . . 5 . . . 1 Scanalyzers . | . . . . . . . . . . . . . . . . . . . . . . . . Garrison Access 6 | . . . . . 1 . . . . . . . 1 . . . . . 2 . 1 . 1 Total Hacks 294 | . 38 . 16 23 42 . . . 4 7 7 25 7 41 1 . 10 . 14 26 12 15 6 Successful 179 | . 30 . 9 23 22 . . . 1 6 2 25 4 19 1 . 10 . 5 7 3 7 5 Failed 115 | . 8 . 7 . 20 . . . 3 1 5 . 3 22 . . . . 9 19 9 8 1 Catastrophic 26 | . 1 . 3 . 1 . . . 1 . 2 . 1 4 . . . . 6 5 1 1 . Database Lockouts . | . . . . . . . . . . . . . . . . . . . . . . . . Manual 104 | . 16 . 8 . 15 . 3 . . 4 1 . 6 20 . . . . 11 3 5 9 3 Terminals 161 | . 29 . 13 . 26 . . . . 7 7 . 4 31 1 . . . 4 13 7 15 4 Fabricators 7 | . . . . . 2 . . . . . . . . 4 . . . . . 1 . . . Repair Stations 37 | . 8 . . . 6 . . . 4 . . . . 5 . . . . . 12 2 . . Recycling Units 17 | . 1 . 3 . 5 . . . . . . . . 1 . . . . 6 . . . 1 Scanalyzers . | . . . . . . . . . . . . . . . . . . . . . . . . Garrison Access 14 | . . . . . 3 . . . . . . . 3 . . . . . 4 . 3 . 1 Terminal Hacks 119 | . 15 . 6 23 8 . . . . 5 2 25 1 10 1 . 10 . . 3 1 6 3 Record 56 | . . . . 14 . . . . . . 2 25 . . 1 . 8 . . 1 . 3 2 Robot Analysis 14 | . 4 . . 8 1 . . . . . . . . . . . . . . 1 . . . Prototype ID Bank 9 | . 3 . 3 . 1 . . . . 1 . . . 1 . . . . . . . . . Open Door 4 | . . . . . . . . . . 1 . . . . . . 2 . . . . 1 . Level Access Points 3 | . . . . . . . . . . . . . 1 . . . . . . . . 1 1 Branch Access Points 1 | . . . . . . . . . . . . . . . . . . . . . 1 . . Emergency Access Points 1 | . 1 . . . . . . . . . . . . . . . . . . . . . . Recycling Unit Index 2 | . . . . . 1 . . . . . . . . 1 . . . . . . . . . Alert Level 8 | . 2 . . . 2 . . . . . . . . 4 . . . . . . . . . Unreport Threat 4 | . . . . . . . . . . . . . . 4 . . . . . . . . . Locate Traps 4 | . 2 . . . 1 . . . . 1 . . . . . . . . . . . . . Recall Extermination 1 | . . . . . . . . . . . . . . . . . . . . . . 1 . Hauler Manifests 2 | . 1 . 1 . . . . . . . . . . . . . . . . . . . . Registered Components 1 | . . . . . . . . . . 1 . . . . . . . . . . . . . Registered Prototypes 1 | . . . . . 1 . . . . . . . . . . . . . . . . . . Zone Layout 6 | . 2 . 2 . 1 . . . . 1 . . . . . . . . . . . . . Proto ID Catalog 1 | . . . . 1 . . . . . . . . . . . . . . . . . . . Protovariant Controls 1 | . . . . . . . . . . . . . . . . . . . . 1 . . . Fabricator Hacks 3 | . . . . . 2 . . . . . . . . 1 . . . . . . . . . Network Status 2 | . . . . . 1 . . . . . . . . 1 . . . . . . . . . Build 1 | . . . . . 1 . . . . . . . . . . . . . . . . . . Repair Station Hacks 18 | . 8 . . . 3 . . . 1 . . . . 2 . . . . . 4 . . . Scan Component 11 | . 4 . . . 2 . . . 1 . . . . 1 . . . . . 3 . . . Repair 7 | . 4 . . . 1 . . . . . . . . 1 . . . . . 1 . . . Recycling Unit Hacks . | . . . . . . . . . . . . . . . . . . . . . . . . Scanalyzer . | . . . . . . . . . . . . . . . . . . . . . . . . Garrison Access Hacks 3 | . . . . . . . . . . . . . . . . . . . 1 . 1 . 1 Seal Access 3 | . . . . . . . . . . . . . . . . . . . 1 . 1 . 1 Unauthorized Hacks 36 | . 7 . 3 . 9 . . . . 1 . . 3 6 . . . . 4 . 1 1 1 Terminals 19 | . 6 . . . 4 . . . . 1 . . 3 3 . . . . . . . 1 1 Track 1 | . 1 . . . . . . . . . . . . . . . . . . . . . . Assimilate 4 | . 2 . . . . . . . . . . . . 2 . . . . . . . . . Botnet 11 | . 2 . . . 3 . . . . 1 . . 2 1 . . . . . . . 1 1 Operators 2 | . 1 . . . 1 . . . . . . . . . . . . . . . . . . Sabotage 1 | . . . . . . . . . . . . . 1 . . . . . . . . . . Fabricators 2 | . . . . . . . . . . . . . . 2 . . . . . . . . . Report 1 | . . . . . . . . . . . . . . 1 . . . . . . . . . Haulers 1 | . . . . . . . . . . . . . . 1 . . . . . . . . . Repair Stations 1 | . . . . . . . . . . . . . . . . . . . . . 1 . . Patch 1 | . . . . . . . . . . . . . . . . . . . . . 1 . . Recycling Units 14 | . 1 . 3 . 5 . . . . . . . . 1 . . . . 4 . . . . Tunnel 4 | . 1 . 3 . . . . . . . . . . . . . . . . . . . . Fedlink 10 | . . . . . 5 . . . . . . . . 1 . . . . 4 . . . . Scanalyzers . | . . . . . . . . . . . . . . . . . . . . . . . . Garrison Access . | . . . . . . . . . . . . . . . . . . . . . . . . Data Cores Recovered 1 | . . . . . . . . . . . . . . 1 . . . . . . . . . Used . | . . . . . . . . . . . . . . . . . . . . . . . . Hacking Detections 62 | . 7 . 5 . 12 . . . 1 1 3 . 2 9 1 . . . 3 7 4 4 3 Full Trace Events 6 | . . . 2 . 1 . . . . . 1 . 1 . . . . . 1 . . . . Feedback Events . | . . . . . . . . . . . . . . . . . . . . . . . . Feedback Blocked . | . . . . . . . . . . . . . . . . . . . . . . . . Robot Schematics Acquired 3 | . . . . . . . 3 . . . . . . . . . . . . . . . . Robots Built . | . . . . . . . . . . . . . . . . . . . . . . . . Authchips . | . . . . . . . . . . . . . . . . . . . . . . . . Time . | . . . . . . . . . . . . . . . . . . . . . . . . Total Robot Build Rating . | . . . . . . . . . . . . . . . . . . . . . . . . Part Schematics Acquired 21 | . . . . . . . 15 . . . . . . . . . . . . . . 6 . Parts Built 2 | . . . . . 2 . . . . . . . . . . . . . . . . . . Authchips . | . . . . . . . . . . . . . . . . . . . . . . . . Time 47 | . . . . . 47 . . . . . . . . . . . . . . . . . . Total Part Build Rating 10 | . . . . . 10 . . . . . . . . . . . . . . . . . . Parts Repaired 7 | . 4 . . . 1 . . . . . . . . 1 . . . . . 1 . . . Time 257 | . 104 . . . 22 . . . . . . . . 45 . . . . . 86 . . . Parts Recycled . | . . . . . . . . . . . . . . . . . . . . . . . . Recycled Matter . | . . . . . . . . . . . . . . . . . . . . . . . . Retrieved Matter . | . . . . . . . . . . . . . . . . . . . . . . . . Retrieved Components . | . . . . . . . . . . . . . . . . . . . . . . . . Parts Scanalyzed . | . . . . . . . . . . . . . . . . . . . . . . . . Part Schematics Acquired . | . . . . . . . . . . . . . . . . . . . . . . . . Parts Damaged . | . . . . . . . . . . . . . . . . . . . . . . . . Bothacking | -11 -10 -10 -9 -9 -6 -6 -6 -5 -5 -5 -5 -5 -5 -4 -4 -4 -4 -3 -3 -3 -2 -2 -1 ------------ Run | Yrd Mat Sub Rec Scr Fac Low Zio Pro Fac Ext Cet Arc Hub Fac Upp Upp War Pro Res Tes Res Qua Acc Used RIF Installer . | . . . . . . . . . . . . . . . . . . . . . . . . Robots Hacked . | . . . . . . . . . . . . . . . . . . . . . . . . Non-combat . | . . . . . . . . . . . . . . . . . . . . . . . . Combat . | . . . . . . . . . . . . . . . . . . . . . . . . Robot Hacks Applied . | . . . . . . . . . . . . . . . . . . . . . . . . Relay Couplers Released 5 | . . . . . 3 . . . . . . . . . . . . . 2 . . . . Machine Destruction 2 | . . . . . . . . . . . . . . . . . . . 2 . . . . Programmers 3 | . . . . . 3 . . . . . . . . . . . . . . . . . . Fabnet Peak Effective % . | . . . . . . . . . . . . . . . . . . . . . . . . Robots Rewired 23 | . . . 7 . . . . . . 11 . . . . . . 5 . . . . . . Allies Hacked . | . . . . . . . . . . . . . . . . . . . . . . . . Hacks Repelled . | . . . . . . . . . . . . . . . . . . . . . . . . Allies | -11 -10 -10 -9 -9 -6 -6 -6 -5 -5 -5 -5 -5 -5 -4 -4 -4 -4 -3 -3 -3 -2 -2 -1 -------- Run | Yrd Mat Sub Rec Scr Fac Low Zio Pro Fac Ext Cet Arc Hub Fac Upp Upp War Pro Res Tes Res Qua Acc Total Allies 35 | . . . 7 . 1 . 5 . . 12 5 . . . . . 5 . . . . . . Largest Group 11 | . . . 7 7 7 . 5 5 . 11 7 5 . . . . 5 . . . . . . Highest-Rated Group 670 | . . . 108 105 105 . 140 140 . 431 670 408 . . . . 287 . . . . . . Highest-Rated Ally 159 | . . . 27 27 37 . 31 31 . 159 159 96 . . . . 68 . . . . . . Total Orders . | . . . . . . . . . . . . . . . . . . . . . . . . Ally Attacks 371 | . . . . . 35 . . 13 . 194 94 23 . . . . 12 . . . . . . Total Damage 8633 | . . . . . 570 . . 275 . 4391 2389 544 . . . . 464 . . . . . . Kills 51 | . . . . . 5 . . 2 . 28 10 2 . . . . 4 . . . . . . Allies Corrupted 2 | . . . . . . . . . . 2 . . . . . . . . . . . . . Allies Melted 2 | . . . . . . . . . . . . . . . . . 2 . . . . . . Intel | -11 -10 -10 -9 -9 -6 -6 -6 -5 -5 -5 -5 -5 -5 -4 -4 -4 -4 -3 -3 -3 -2 -2 -1 ------- Run | Yrd Mat Sub Rec Scr Fac Low Zio Pro Fac Ext Cet Arc Hub Fac Upp Upp War Pro Res Tes Res Qua Acc Active Infowar (turns) 26287 | 70 1551 800 . 692 2071 829 1698 321 318 1654 1017 287 765 3111 843 828 1424 1442 2042 2460 1070 779 215 Optics 23498 | . . 324 . . 2071 829 1698 321 318 1654 1017 287 765 3111 843 828 1424 1442 2042 2460 1070 779 215 Sensors 15444 | . . . . . 1668 497 . . . . . . 301 2977 841 826 1423 1442 2042 1937 849 641 . Seismic 11542 | 70 1551 476 . 692 147 828 1698 321 318 1262 . . 338 412 . . . . 2041 1388 . . . Decoding 4563 | . . . . . . . . . . . . . . . . . 602 1442 2042 477 . . . Cloaking 1 | . . . . . . . . . . . . . . . . . . . 1 . . . . Jamming 1 | . . . . . . . . . . . . . . . . . . . . . . . 1 ECM 1 | . . . . . . . . . . . . . . . . . . 1 . . . . . Robot Analysis Total 14 | . 4 . . 8 1 . . . . . . . . . . . . . . 1 . . . Derelict Logs Recovered 6 | . . . . 3 . 1 1 . . . . . . . . 1 . . . . . . . Drone Launches . | . . . . . . . . . . . . . . . . . . . . . . . . Drone Recoveries . | . . . . . . . . . . . . . . . . . . . . . . . . Decoded 0b10 Intel 30 | . . . . . . . . . . . . . . . . . . . 24 6 . . . Traps 24 | . . . . . . . . . . . . . . . . . . . 22 2 . . . Emergency Access 4 | . . . . . . . . . . . . . . . . . . . . 4 . . . Garrisons 2 | . . . . . . . . . . . . . . . . . . . 2 . . . . Exploration | -11 -10 -10 -9 -9 -6 -6 -6 -5 -5 -5 -5 -5 -5 -4 -4 -4 -4 -3 -3 -3 -2 -2 -1 ------------- Run | Yrd Mat Sub Rec Scr Fac Low Zio Pro Fac Ext Cet Arc Hub Fac Upp Upp War Pro Res Tes Res Qua Acc Turns Passed 33656 | 217 1551 1500 1524 5515 2092 829 1698 321 318 1654 1030 287 765 3111 843 828 1424 1442 2042 2460 1070 779 356 Spaces Moved 19530 | 96 768 912 827 3132 1594 372 1218 252 221 859 486 177 385 1464 490 486 800 795 1027 1137 808 604 620 Core 137 | 3 . . . . . . . . . . . . . . . . . . . . . 1 133 Treads 11539 | 93 768 519 827 1551 7 . . . . 249 440 177 385 1464 490 486 800 795 1027 1137 320 4 . Legs 2701 | . . . . . 9 372 1218 252 221 583 46 . . . . . . . . . . . . Wheels 3579 | . . 393 . 1581 1578 . . . . 27 . . . . . . . . . . . . . Hover 981 | . . . . . . . . . . . . . . . . . . . . . 488 434 59 Flight 593 | . . . . . . . . . . . . . . . . . . . . . . 165 428 Fastest Speed 22 | 50 160 120 160 115 90 190 120 120 120 101 115 160 160 160 160 160 160 160 152 145 38 22 25 Average Speed 143 | 156 160 142 160 173 102 190 136 120 120 130 155 160 160 160 160 160 160 160 159 158 85 78 35 Slowest Speed 550 | 160 160 160 160 295 320 190 190 120 122 240 240 160 160 160 160 160 160 160 170 270 156 550 200 Overloaded Moves . | . . . . . . . . . . . . . . . . . . . . . . . . Propulsion Burnouts . | . . . . . . . . . . . . . . . . . . . . . . . . Robots Hopped 4 | . . . . . . . . . . . . . . . . . . . . . . 2 2 Potential Cave-ins 5 | . . . . . . . . . . . . . . 2 . . . . . 3 . . . Cave-ins Triggered . | . . . . . . . . . . . . . . . . . . . . . . . . Teleports 1 | . . . . . . . . . . . . . . . . . . . . . . 1 . Exploration Rate (%) 58 | 6 98 34 99 94 37 36 89 57 9 68 90 99 38 35 67 65 96 79 35 77 21 49 18 Regions Visited 23 Branch Regions 16 Pre-discovered Areas 8 | . 1 1 3 2 1 . . . . . . . . . . . . . . . . . . Known Exits Taken 16 | . . . . . 1 1 1 1 1 1 . . 1 1 1 1 1 1 1 1 1 1 . Unknown Exits Taken 7 | 1 1 1 1 1 . . . . . . 1 1 . . . . . . . . . . . Scrap Searched 24 | . . 6 . 7 . . 2 3 . . . . . . 2 2 . 2 . . . . . Spaces Dug 318 | . 7 2 5 . 36 21 . . 8 . . . 6 58 8 11 . 3 18 44 47 9 35 Terrain Destroyed 1044 | . 7 6 8 . 95 25 . 5 8 136 5 . 6 190 34 24 10 12 37 183 105 11 137 Melee 161 | . . 2 . . 32 4 . . 8 . . . 6 14 . . . . 14 22 37 6 16 Projectile 280 | . . . 8 . 26 18 . 5 . 7 5 . . 81 14 13 8 12 14 43 13 5 8 AOE 602 | . 7 4 . . 37 3 . . . 129 . . . 95 20 11 2 . 9 117 55 . 113 Terrain Rammed . | . . . . . . . . . . . . . . . . . . . . . . . . Walls Destroyed . | . . . . . . . . . . . . . . . . . . . . . . . . Machines Disabled . | . . . . . . . . . . . . . . . . . . . . . . . . Actions | -11 -10 -10 -9 -9 -6 -6 -6 -5 -5 -5 -5 -5 -5 -4 -4 -4 -4 -3 -3 -3 -2 -2 -1 --------- Run | Yrd Mat Sub Rec Scr Fac Low Zio Pro Fac Ext Cet Arc Hub Fac Upp Upp War Pro Res Tes Res Qua Acc Total 23614 | 131 981 1027 989 3227 1903 467 1257 264 252 1266 697 180 470 2021 525 512 929 934 1356 1625 1068 821 712 Wait 1837 | 8 128 8 62 24 84 54 22 . 4 119 110 3 15 352 13 . 55 102 229 252 123 42 28 Move 19499 | 95 767 911 826 3131 1593 371 1217 251 220 858 485 176 384 1463 489 485 799 794 1026 1136 807 599 616 Hop 4 | . . . . . . . . . . . . . . . . . . . . . . 2 2 Pick Up 239 | 5 8 19 3 46 18 2 3 1 1 26 12 . 4 21 1 1 14 6 8 18 8 12 2 Fast Attach 123 | 7 4 2 . 1 1 . 2 . 1 9 6 1 5 9 2 1 4 1 7 18 7 29 6 Attach 102 | . 2 5 . . 17 6 2 1 2 8 2 . 3 8 . . 1 2 5 13 16 6 3 Detach 55 | . 1 . . 1 3 2 2 . 1 5 2 . 1 2 . . 1 . 4 9 9 7 5 Swap 237 | . 8 10 6 9 35 3 4 4 5 25 15 . 12 23 5 5 7 5 16 27 10 3 . Drop 259 | . 7 18 5 14 22 . 3 1 5 21 24 . 7 17 3 2 19 5 18 19 9 30 10 Fire 679 | 16 56 49 20 . 64 25 . 6 . 57 41 . 8 112 12 18 13 18 25 86 24 14 15 Melee 331 | . . 2 . . 50 4 2 . 13 21 . . 31 14 . . . . 18 47 55 51 23 Ram 2 | . . . . . . . . . . . . . . . . . . . . . . . 2 Kick . | . . . . . . . . . . . . . . . . . . . . . . . . Crush . | . . . . . . . . . . . . . . . . . . . . . . . . Escape Stasis 42 | . . . . . 16 . . . . . . . . . . . . . . . . 26 . Rewire 204 | . . 3 67 1 . . . . . 117 . . . . . . 16 . . . . . . Trap . | . . . . . . . . . . . . . . . . . . . . . . . . Miscellaneous 1 | . . . . . . . . . . . . . . . . . . 1 . . . . . Route ------- -11/Scrapyard -10/Materials (discovered 6 exits: [*Mat x3] / [*Min x2] / [*Sub]) -10/Subcaves -9/Recycling (discovered 2 exits: [*Fac] / *Scr) -9/Scraptown (discovered 2 exits: *Fac x2) -6/Factory -6/Lower Caves -6/Zion -5/Proximity Caves -5/Factory (discovered 3 exits: Upp / *Ext x2) -5/Extension (discovered 3 exits: *Fac x2 / *Cet) -5/Cetus (discovered 2 exits: *Fac / *Arc) -5/Archives (discovered 3 exits: *Fac / *Hub x2) -5/Hub_04(d) (discovered 4 exits: *Fac x4) -4/Factory -4/Upper Caves -4/Upper Caves -4/Warlord -3/Proximity Caves -3/Research (discovered 2 exits: *Res / *Tes) -3/Testing -2/Research (discovered 2 exits: *Qua x2) -2/Quarantine -1/Access (discovered 1 exit: Sur) History --------- Turn | Location | Event 11 | -11/Scrapyard | Discovered new exit (range 15) 218 | -11/Scrapyard | Entered Materials 319 | -10/Materials | Build established: Mutant 320 | -10/Materials | Discovered new exit (range 6) 572 | -10/Materials | Discovered new exit (range 16) 1096 | -10/Materials | Repaired Lgt. Treads 1124 | -10/Materials | Repaired Lgt. Treads 1151 | -10/Materials | Repaired Assault Rifle 1179 | -10/Materials | Repaired Beam Cannon 1257 | -10/Materials | Discovered new exit (range 7) 1355 | -10/Materials | Discovered new exit (range 16) 1510 | -10/Materials | Discovered new exit (range 11) 1666 | -10/Materials | Discovered new exit (range 15) 1769 | -10/Materials | Entered Subcaves 1770 | -10/Subcaves | Approached by a straggling Scientist 1795 | -10/Subcaves | Learned location of Zion (-6) 1795 | -10/Subcaves | Met a Zionite searching for "candidates" 1815 | -10/Subcaves | Shifting Twisted Machinery released Battle Cannon 2570 | -10/Subcaves | Shifting Twisted Machinery released Sub. Machine Gun 2596 | -10/Subcaves | Build established: Scavenger-Mutant 3191 | -10/Subcaves | Discovered new exit (range 10) 3269 | -10/Subcaves | Entered Recycling 3866 | -9/Recycling | Build established: Commander-Mutant 4067 | -9/Recycling | Discovered new exit (range 15) 4288 | -9/Recycling | Scanned before Scraplab entrance 4724 | -9/Recycling | Entered Scraplab 4739 | -9/Recycling | Discovered new exit (range 3) 4793 | -9/Recycling | Entered Scraptown 4793 | -9/Scraptown | Accompanied by 7 allies 5067 | -9/Scraptown | Learned location of Extension (-5) 5160 | -9/Scraptown | Heard Great Nut preacher, LISTEN AND RECITE! 5436 | -9/Scraptown | Visited Symbiants 5480 | -9/Scraptown | Visited Awakened 5520 | -9/Scraptown | Visited Comm Corps 5645 | -9/Scraptown | Visited Fellowship of the Rings 5684 | -9/Scraptown | Visited Red Mages 5797 | -9/Scraptown | Received an X-ray algorithm 6050 | -9/Scraptown | Scanned Subdweller tech in exchange for log data 6055 | -9/Scraptown | Learned location of Warlord (-4) 6056 | -9/Scraptown | Learned Factory emergency access door positions 6215 | -9/Scraptown | Discovered new exit (range 3) 6391 | -9/Scraptown | Visited Assassins FH 6432 | -9/Scraptown | Visited IN-MT5's Study 6943 | -9/Scraptown | Visited UFD Registry 6946 | -9/Scraptown | Registered with UFD as "Thermoguard" 6986 | -9/Scraptown | Visited Analyses Database 7034 | -9/Scraptown | Visited Derelict Rescue Squad 7103 | -9/Scraptown | Visited Science Guys 7383 | -9/Scraptown | Visited Botcube Research 7417 | -9/Scraptown | Visited DA-N13 Charitable Foundation 7426 | -9/Scraptown | Found DCF Scrap (33 items) 7504 | -9/Scraptown | Visited Research Penetration Think Tank 7643 | -9/Scraptown | Visited Modified Component R&D 7760 | -9/Scraptown | Found Scrap Suit 7868 | -9/Scraptown | Visited Scrapoid Pod Storage 8485 | -9/Scraptown | Build established: Hauler-Mutant 9901 | -9/Scraptown | Found DRS Beacon 10117 | -9/Scraptown | Found Botcube 10190 | -9/Scraptown | Met Optimus 10190 | -9/Scraptown | Accepted into 0bPrime 10295 | -9/Scraptown | Discovered new exit (range 5) 10308 | -9/Scraptown | Entered Factory 10308 | -6/Factory | Accompanied by 7 allies 10308 | -6/Factory | Evolved 8 slots: Power x1, Propulsion x2, Utility x5 10375 | -6/Factory | Lost 5 allies 10469 | -6/Factory | Botcube activated 10483 | -6/Factory | Botcube completed mutation into legged form, armed with 2 guns. 10738 | -6/Factory | Garrison activated, responded to threat 10744 | -6/Factory | Fabricated Adv. Melee Analysis Suite? 11148 | -6/Factory | Loaded intel: 8 recycling unit locations 11257 | -6/Factory | Build established: Scrapper 11280 | -6/Factory | Learned location of Protoforge (-2) 11317 | -6/Factory | Discovered new exit (range 16) 11629 | -6/Factory | Repaired Imp. Medium Armor Plating 12354 | -6/Factory | Identified exit to Lower Caves 12400 | -6/Factory | Entered Lower Caves 12668 | -6/Lower Caves | Build established: Scavenger-Assassin 12893 | -6/Lower Caves | Attracted the attention of an 0b10 checkpoint 12984 | -6/Lower Caves | Learned 4 Factory zone layouts 13188 | -6/Lower Caves | Build established: Mutant 13201 | -6/Lower Caves | A Derelict revealed a hidden shortcut to a safe place 13223 | -6/Lower Caves | Identified exit to Zion 13229 | -6/Lower Caves | Entered Zion 13293 | -6/Zion | Discovered new exit (range 16) 13329 | -6/Zion | Gained Derelict followers 13372 | -6/Zion | System corruption cleaned by Quarantine Array 13947 | -6/Zion | Build established: Derelict-Mutant 14139 | -6/Zion | Turned away by Imprinter 14484 | -6/Zion | Received a hallucinogenic algorithm 14486 | -6/Zion | Ran a hallucination algorithm 14493 | -6/Zion | Ran a hallucination algorithm 14495 | -6/Zion | Ran a hallucination algorithm 14911 | -6/Zion | Identified exit to Proximity Caves 14927 | -6/Zion | Entered Proximity Caves 14927 | -5/Proximity Caves | Accompanied by 5 allies 15071 | -5/Proximity Caves | Attracted the attention of an 0b10 outpost 15122 | -5/Proximity Caves | Lost 4 allies 15210 | -5/Proximity Caves | Discovered new exit (range 9) 15247 | -5/Proximity Caves | Identified exit to Factory 15248 | -5/Proximity Caves | Entered Factory 15248 | -5/Factory | Evolved 2 slots: Propulsion x2 15249 | -5/Factory | Identified exit to Upper Caves 15250 | -5/Factory | Identified exit to Extension 15529 | -5/Factory | Discovered exit to Extension (range 17) 15566 | -5/Factory | Entered Extension 15592 | -5/Extension | Lost 4 parts (2p1n1u) 15791 | -5/Extension | Disrupted transfer network 15969 | -5/Extension | Energy Cycler disabled 15970 | -5/Extension | Rescued a captive Derelict 15971 | -5/Extension | Rescued a captive Derelict 15972 | -5/Extension | Rescued a captive Derelict 15973 | -5/Extension | Rescued a captive Derelict 15978 | -5/Extension | Rescued A7 15986 | -5/Extension | Rescued a captive Derelict 15987 | -5/Extension | Rescued a captive Derelict 16678 | -5/Extension | Build established: Commander-Mutant 16904 | -5/Extension | Spotted B-75 Beast 16930 | -5/Extension | Spotted B-75 Beast 16938 | -5/Extension | Allies destroyed B-75 Beast 16959 | -5/Extension | Discovered new exit (range 15) 16964 | -5/Extension | Allies destroyed B-75 Beast 17107 | -5/Extension | Lost 4 allies 17183 | -5/Extension | Discovered new exit (range 21) 17184 | -5/Extension | Discovered new exit (range 21) 17207 | -5/Extension | Identified exit to Cetus 17220 | -5/Extension | Entered Cetus 17220 | -5/Cetus | Accompanied by 5 allies (A7) 17225 | -5/Cetus | Acquired a Cetus Manufacturing Module code from A7 17232 | -5/Cetus | Spotted Cetus Guard 17233 | -5/Cetus | Spotted Cetus Guard 17237 | -5/Cetus | Spotted Cetus Guard 17240 | -5/Cetus | Spotted Cetus Guard 17246 | -5/Cetus | Allies destroyed Cetus Guard 17251 | -5/Cetus | Destroyed Cetus Guard 17253 | -5/Cetus | Destroyed Cetus Guard 17269 | -5/Cetus | Allies destroyed Cetus Guard 17299 | -5/Cetus | Lost 3 allies 17401 | -5/Cetus | Started Cetus Manufacturing Module 17426 | -5/Cetus | Manufactured an Enhanced Grunt 17437 | -5/Cetus | Build established: Scavenger-Mutant 17451 | -5/Cetus | Manufactured an Enhanced Grunt 17476 | -5/Cetus | Manufactured an Enhanced Grunt 17501 | -5/Cetus | Manufactured an Enhanced Grunt 17526 | -5/Cetus | Manufactured an Enhanced Grunt 17586 | -5/Cetus | Escorted A7 to Cetus Mainframe 17709 | -5/Cetus | Discovered new exit (range 22) 17748 | -5/Cetus | Spotted Cetus Guard 17748 | -5/Cetus | Spotted Cetus Guard 17751 | -5/Cetus | Spotted Cetus Guard 17753 | -5/Cetus | Spotted Cetus Guard 17756 | -5/Cetus | Allies destroyed Cetus Guard 17757 | -5/Cetus | Discovered new exit (range 22) 17765 | -5/Cetus | Allies destroyed Cetus Guard 17768 | -5/Cetus | Allies destroyed Cetus Guard 17775 | -5/Cetus | Destroyed Cetus Guard 17793 | -5/Cetus | Met Revision 17 17970 | -5/Cetus | Security sweep announced 18022 | -5/Cetus | Murdered A7 18026 | -5/Cetus | Extracted ID and sensor layout for unrecognized location from A7's data core 18035 | -5/Cetus | Found Prototype Protection 18035 | -5/Cetus | Identified Med. Regenerative Plating 18052 | -5/Cetus | Found Prototype Device 18052 | -5/Cetus | Identified Exp. Thermal Shield 18250 | -5/Cetus | Entered Archives 18250 | -5/Archives | Accompanied by 5 allies 18278 | -5/Archives | Met Zhirov 18281 | -5/Archives | Discovered new exit (range 21) 18284 | -5/Archives | Reinforcements dispatched to Archives 18303 | -5/Archives | Discovered new exit (range 22) 18319 | -5/Archives | Read partially decrypted archive contents 18329 | -5/Archives | Reinforcements dispatched to Archives 18349 | -5/Archives | Zhirov detonated Archives 18380 | -5/Archives | Lost 5 allies 18389 | -5/Archives | Discovered new exit (range 16) 18537 | -5/Archives | Entered Hub_04(d) 18706 | -5/Hub_04(d) | Identified exit to Factory 19287 | -5/Hub_04(d) | Network Hub disabled 19293 | -5/Hub_04(d) | Spotted Lightning 19293 | -5/Hub_04(d) | Spotted Lightning 19293 | -5/Hub_04(d) | Spotted Lightning 19298 | -5/Hub_04(d) | Spotted Lightning 19298 | -5/Hub_04(d) | Spotted Lightning 19298 | -5/Hub_04(d) | Spotted Lightning 19302 | -5/Hub_04(d) | System corruption reached 10% 19302 | -5/Hub_04(d) | Entered Factory 19302 | -4/Factory | Evolved 2 slots: Utility x2 19974 | -4/Factory | Repaired Corrupted Centrium Heavy Treads 20064 | -4/Factory | Build established: Scavenger-Assassin 20285 | -4/Factory | Discovered new exit (range 16) 20330 | -4/Factory | Found Prototype Processor 20330 | -4/Factory | Identified Exp. Targeting Computer 20391 | -4/Factory | Build established: Scavenger-Skirmisher 20952 | -4/Factory | Found Prototype Launcher 20952 | -4/Factory | Identified Tesla Bomb Launcher 21541 | -4/Factory | Identified exit to Upper Caves 22323 | -4/Factory | Loaded intel: 8 recycling unit locations 22413 | -4/Factory | Entered Upper Caves 22450 | -4/Upper Caves | Encountered a Warlord checkpoint 23227 | -4/Upper Caves | Discovered new exit (range 14) 23254 | -4/Upper Caves | Identified exit to Upper Caves 23256 | -4/Upper Caves | Entered another Upper Caves area 23766 | -4/Upper Caves | Attracted the attention of an 0b10 checkpoint 23886 | -4/Upper Caves | Learned Research emergency access door positions 23958 | -4/Upper Caves | Discovered new exit (range 16) 23987 | -4/Upper Caves | Identified exit to Warlord 24084 | -4/Upper Caves | Entered Warlord 24142 | -4/Warlord | System corruption cleaned by Quarantine Array 24570 | -4/Warlord | Rebuked by Warlord 24595 | -4/Warlord | Warlord's base attacked by MAIN.C 24790 | -4/Warlord | Found Prototype Energy Gun 24790 | -4/Warlord | Identified Vortex Rifle 24797 | -4/Warlord | Found Vortex Rifle 24803 | -4/Warlord | Found Prototype Launcher 24805 | -4/Warlord | Identified Vortex Catalyst Activator 24945 | -4/Warlord | Warlord forces counterattacked 25189 | -4/Warlord | Spotted Executioner 25267 | -4/Warlord | Opened side exit 25270 | -4/Warlord | Warlord base infiltrated, sounded retreat 25331 | -4/Warlord | Spotted Executioner 25350 | -4/Warlord | Destroyed Executioner 25362 | -4/Warlord | Lost 6 allies 25404 | -4/Warlord | Spotted Striker 25405 | -4/Warlord | Spotted Executioner 25408 | -4/Warlord | Spotted Executioner 25422 | -4/Warlord | Destroyed Executioner 25450 | -4/Warlord | Found Prototype Device 25450 | -4/Warlord | Identified Exp. Shock Absorption System 25453 | -4/Warlord | Lost 14 allies 25489 | -4/Warlord | Discovered new exit (range 14) 25498 | -4/Warlord | Spotted Executioner 25506 | -4/Warlord | Identified exit to Proximity Caves 25508 | -4/Warlord | Entered Proximity Caves 25536 | -3/Proximity Caves | Lost 4 allies 25771 | -3/Proximity Caves | Activated DRS Beacon 26923 | -3/Proximity Caves | Discovered new exit (range 10) 26936 | -3/Proximity Caves | Identified exit to Research 26950 | -3/Proximity Caves | Entered Research 26950 | -3/Research | Evolved 2 slots: Utility x1, Weapon x1 27009 | -3/Research | Found Unknown Device 27009 | -3/Research | Identified Quantum Capacitor 27150 | -3/Research | Revision forces began assault on 0b10 27172 | -3/Research | Met up with Revision 17++ 27253 | -3/Research | Build established: Scavenger-Assassin 27444 | -3/Research | Ran an X-ray algorithm 27515 | -3/Research | Discovered new exit (range 13) 27534 | -3/Research | Identified exit to Research 27650 | -3/Research | Research terminal network offline 27701 | -3/Research | Loaded intel: 5 recycling unit locations 27913 | -3/Research | Spotted Striker 27951 | -3/Research | Build established: Scavenger-Skirmisher 28483 | -3/Research | Discovered new exit (range 3) 28486 | -3/Research | Identified exit to Testing 28630 | -3/Research | Build established: Scavenger-Assassin 28982 | -3/Research | Spotted Striker 28992 | -3/Research | Entered Testing 29075 | -3/Testing | Found Prototype Device 29075 | -3/Testing | Identified System Purifier 29078 | -3/Testing | Found System Purifier 29578 | -3/Testing | Found Prototype Device 29578 | -3/Testing | Identified Adv. EM Shield 29655 | -3/Testing | Found Prototype Energy Cannon 29655 | -3/Testing | Identified Potential Cannon 29780 | -3/Testing | Repaired Broken Lrn. Sensor Array 30378 | -3/Testing | Found Prototype Device 30378 | -3/Testing | Identified AEGIS Remote Shield 30654 | -3/Testing | Destroyed 7 combat bots 30783 | -3/Testing | System corruption reached 10% 30921 | -3/Testing | Discovered exit to Research (range 5) 31370 | -3/Testing | Found Prototype Hackware 31370 | -3/Testing | Identified System Mapper 31452 | -3/Testing | Entered Research 31452 | -2/Research | Evolved 2 slots: Propulsion x2 31515 | -2/Research | Identified exit to Quarantine 31671 | -2/Research | Build established: Scavenger-Mutant 31980 | -2/Research | Build established: Scavenger-Assassin 32172 | -2/Research | Lost 5 parts (1p2n1u1w) 32419 | -2/Research | Spotted B-90 Cyclops 32447 | -2/Research | Build established: Scavenger-Scout 32452 | -2/Research | First assault squad dispatched 32522 | -2/Research | Entered Quarantine 32600 | -2/Quarantine | Lost 7 parts (3n4u) 32737 | -2/Quarantine | Identified exit to Access 32827 | -2/Quarantine | Found Alien Artifact 32885 | -2/Quarantine | Build established: Scavenger-Assassin 32969 | -2/Quarantine | Found Alien Artifact 32969 | -2/Quarantine | Identified Phase Armor 33049 | -2/Quarantine | Found Prototype Launcher 33049 | -2/Quarantine | Identified Adv. Micro-nuke Launcher 33081 | -2/Quarantine | Found Alien Energy Cannon 33081 | -2/Quarantine | Identified Core Cannon 33138 | -2/Quarantine | Met incapacitated Sigix Warrior 33138 | -2/Quarantine | Lockdown squad dispatched 33140 | -2/Quarantine | Acquired the access code to the Sigix quarantine chamber 33141 | -2/Quarantine | Unlocked Sigix quarantine chamber 33144 | -2/Quarantine | Found Sigix Containment Pod 33145 | -2/Quarantine | Identified Hpw. Transdimensional Reconstructor 33145 | -2/Quarantine | Warped through subspace 33149 | -2/Quarantine | System corruption reached 10% 33154 | -2/Quarantine | Found Alien Reactor 33154 | -2/Quarantine | Identified Matter Drive 33180 | -2/Quarantine | Core integrity fell below 50% 33242 | -2/Quarantine | Lost 12 parts (2p6n3u1w) 33265 | -2/Quarantine | Found Prototype Device 33265 | -2/Quarantine | Identified Exp. Shield Generator 33301 | -2/Quarantine | Entered Access 33301 | -1/Access | Evolved 2 slots: Utility x2 33366 | -1/Access | Spotted B-99 Colossus 33438 | -1/Access | Spotted B-99 Colossus 33534 | -1/Access | Identified exit to Surface 33546 | -1/Access | System corruption reached 10% 33550 | -1/Access | Lost 13 parts (1p6n5u1w) 33599 | -1/Access | Energy Cycler disabled 33645 | -1/Access | Core integrity fell below 50% 33653 | -1/Access | Core integrity fell below 20% 33657 | -1/Access | Destroyed by H-88 Terminator with KE Penetrator Last Messages --------------- 33651_ Slug penetrates Wall. 33652_ Wave Collapse Detector explodes. 33652_ Slug penetrates Wall. 33652_ System Mapper destroyed. 33652_ Terminal disabled. 33652_ Slug penetrates Wall. 33652_ Penetrated by Slug. 33653_ Slug penetrates Wall. 33653_ Penetrated by Slug. 33653_ R-10 Processor collects Structural Scanner. 33653_ O-24 Administrator: "IFF HANDSHAKE FAILED. SECURING TERMINAL." 33653_ Penetrated by Slug. 33654_ System corrupted: Matter fused (-6). 33655_ ALERT: Potential suspicious activity detected, Programmers report to Access Zone 6Q. 33655_ Slug penetrates Wall. 33656_ Penetrated by Slug. 33657_ Slug penetrates Wall. [Achievement: 30k Club] [Achievement: Tester] Map ----- +----------------------------------------------------+ | ?# # # ###???????????????????????????????? | | ?# #######?????????????????????????????????? | | ?# #???????????????????????????????????????? | | ## #???????????????????????????????????????? | | #???????????????????????????????????????? | | #####+##+####????????????????????????????????????? | | #????????????????????????????????????? | | #????????????????????????????????????? | | #????????????????????????????????????? | | #????????????????????????????????????? | | """"" #????????????????????????????????????? | | """"" #????????????????????????????????????? | | """"" #????????????????????????????????????? | | """"" #????????????????????????????????????? | | """" #????????????????????????????????????? | | """" #????????????????????????????????????? | | #????????????????????????????????????? | | * #????????????????????????????????????? | | ##########????????????????????????????????????? | | #????????????????????????????????????????? | | #????????????????????????????????????????? | | " ######?#####?????????????????????????????? | | """ ## ?? #????????????????????????????? | | """ ## ############+######??????????? | | " ## "" ## ????????? | | = ## """ ## @ ????????? | | ## T" ## ????????? | | ## """ + ????????? | | "" ## " ## ?????????? | | "" ## # k ?????????? | | "" ## # h k Rk??????????? | | Y" ## # ##########??????????? | | "" ## o#???????????????????? | | "" ## # kh #???????????????????? | | "" ## #???????????????????? | | ## # #???????????????????? | | ## ] # #???????????????????? | | ####+######" # #???????????????????? | | % p #???????????????????? | | % = = #???????????????????? | | =% *% % #???????????????????? | | = " +???????????????????? | | " #???????????????????? | | """"" #???????????????????? | | """""" #???????????????????? | | #######" "" ?!????????????????????? | | #?#" "" ????????????????????????? | | #? ?????????????????????????? | | #? ??????????????????????????? | | ""#### ?????????????????????????????? | +----------------------------------------------------+ Best States ------------- Heat Dissipation 90 Energy Generation 45 Energy Capacity 1100 Matter Stores 300 Matter Capacity 800 Sight Range 22 Robot Scan Range 18 Terrain Scan Density 10 Additional Mass Support 16 Base Temperature (-) 200 EM Shielding 3 Corruption Containment 12 Armor Coverage 450 Resistance: EM 50 Propulsion Shielding 90 Weapon Cycling 25 Phase Shifting 5 Evasion (%) 65 Target Analysis 8 Recoil Reduction 6 Particle Charging 25 Offensive Hacking 28 Defensive Hacking 21 Item Schematics ----------------- Force Field | -6/Zion | Archive Imp. Remote Datajack | -6/Zion | Archive Imp. Thermal Shield | -6/Zion | Archive Energy Well | -6/Zion | Archive Mni. Drone Bay | -6/Zion | Archive IFF Parser | -6/Zion | Archive Antimatter Reactor | -6/Zion | Archive Hvy. Treads | -6/Zion | Archive Power Sword | -6/Zion | Archive Matter Compressor | -6/Zion | Archive Imp. Heavy Armor Plating | -6/Zion | Archive Arm. Medium Treads | -6/Zion | Archive Hvy. Plasma Cannon | -6/Zion | Archive Dispersion Rifle | -6/Zion | Archive Lrn. Phase Cannon | -6/Zion | Archive Mni. Fusion Reactor | -2/Quarantine | Archive Cld. Q-thruster | -2/Quarantine | Archive Hvy. Proton Cannon | -2/Quarantine | Archive Exp. Actuator Array | -2/Quarantine | Archive Exp. ECM Suite | -2/Quarantine | Archive Cld. Field Propulsion Drive | -2/Quarantine | Archive Robot Schematics ------------------ M-22 Extractor | -6/Zion | Archive X-67 Chaingunner | -6/Zion | Archive E-15 Imp | -6/Zion | Archive Fabricated ------------ Adv. Melee Analysis Suite | x2 | -6/Factory | Preloaded Repaired ---------- Lgt. Treads | 34% | -10/Materials Lgt. Treads | 63% | -10/Materials Assault Rifle | 18% | -10/Materials Beam Cannon | 53% | -10/Materials Imp. Medium Armor Plating | 66% | -6/Factory Centrium Heavy Treads | 77% | -4/Factory | Corrupted Lrn. Sensor Array | 11% | -3/Testing | Broken Alien Tech Used ----------------- Phase Armor Core Cannon High-powered Transdimensional Reconstructor Matter Drive Achievements -------------- 30k Club Collateral Damage Revolutionary Research Tester Challenges ------------ None Game ------ Seed BackupTrackerNukerbomber Manual? 0 Play Time 05:26:13 Cumulative 126.7 hours Start 2025.06.13 @ 17:16:19 End 2025.06.14 @ 15:24:34 Sessions 13 Manual Loads 0 Difficulty Rogue Special Mode None Game No. 70 Rogue 66 Adventurer 4 Explorer 0 Win Type - Total 2 Types 1/0/0/1/0/0/0/0/0/0 Lore% 59 Gallery% 52 Achievement% 46 Wizard Run 0 Options --------- Layout 0 ASCII 0 Keyboard 1 Movement Vi Keybinds 0 Fullscreen 1 Font 24/Crisp Map View 76x50 Zoom Use 0% Tactical HUD 1 Map Filters NONE Filters NONE Steam 1 RUN: bd71e1b1-3fae-419d-8d5f-f1f9ab44bd2d